bitfinex/quotes_BTCUSD_20220211
["timestamp","ask_amount","ask_price","bid_price","bid_amount"]
[1644589961989,0.08299612,43795.0,43788.0,0.53034706]
[1644589961990,0.25845034,43794.0,43788.0,0.4161]
[1644589962187,0.0421,43796.0,43795.0,0.00027433]
[1644589962387,0.48924667,43796.0,43795.0,0.00027433]
[1644589962787,0.54638267,43796.0,43795.0,0.00027433]
[1644589962991,1.1,43795.0,43788.0,0.4161]
[1644589963192,0.0421,43794.0,43788.0,0.4161]
[1644589963586,0.29401194,43789.0,43788.0,0.4161]
[1644589963986,0.057135,43790.0,43788.0,0.4161]
[1644589964645,0.057135,43790.0,43789.0,0.05]
[1644589964848,0.49699511,43806.0,43789.0,0.05]
[1644589964849,0.32600305,43802.0,43789.0,0.05]
[1644589965045,0.22867597,43805.0,43798.0,0.05]
[1644589965244,0.22867597,43805.0,43798.0,0.10711]
[1644589965547,0.22867597,43805.0,43799.0,0.05]
[1644589965744,0.07598337,43806.0,43800.0,0.05710563]
[1644589965945,0.29256354,43805.0,43800.0,0.05710563]
[1644589966146,0.13309137,43806.0,43800.0,0.05710563]
[1644589966345,0.057108,43806.0,43799.0,0.30159314]
[1644589966646,0.38715077,43824.0,43800.0,0.057108]
[1644589966647,0.29190887,43816.0,43800.0,0.057108]
[1644589966850,0.05,43817.0,43801.0,0.32573131]
[1644589966851,0.057098,43814.0,43801.0,0.32573131]
[1644589967047,0.00074789,43809.0,43801.0,0.32573131]
[1644589967246,0.35464726,43808.0,43807.0,0.05]
[1644589967446,0.35464726,43808.0,43806.0,0.057095]
[1644589967447,0.7368754,43808.0,43806.0,0.057095]
[1644589967650,0.7368754,43808.0,43799.0,0.05]
[1644589967651,0.08475051,43800.0,43799.0,0.05]
[1644589967848,0.08475051,43800.0,43795.0,0.05]
[1644589968051,0.08475051,43800.0,43793.0,0.00074821]
[1644589968689,0.08475051,43800.0,43793.0,0.10786521]
[1644589968891,0.08475051,43800.0,43795.0,0.0571139]
[1644589969288,0.14186551,43800.0,43793.0,0.10786509]
[1644589969488,0.14186551,43800.0,43794.0,0.05]
[1644589969687,0.14186551,43800.0,43794.0,0.107114]
[1644589969888,0.14186551,43800.0,43793.0,0.00074809]
[1644589970290,0.057124,43796.0,43788.0,0.4161]
[1644589970594,0.057124,43796.0,43793.0,0.00076082]
[1644589970789,0.30027834,43794.0,43793.0,0.00076082]
[1644589971390,0.5870581,43794.0,43793.0,0.00076082]
[1644589971589,0.5870581,43794.0,43788.0,0.4161]
[1644589971590,0.057131,43793.0,43788.0,0.4161]
[1644589971789,0.057131,43793.0,43791.0,0.00076081]
[1644589972837,0.057131,43793.0,43788.0,0.4161]
[1644589973039,0.057131,43793.0,43790.0,0.00063069]
[1644589973439,0.057131,43793.0,43783.0,0.0011]
[1644589973642,0.7013191,43794.0,43783.0,0.0011]
[1644589973643,0.057152,43790.0,43783.0,0.0011]
[1644589973841,0.057152,43790.0,43762.0,0.29016768]
[1644589973842,0.07849272,43785.0,43763.0,0.19368023]
[1644589974044,0.07849272,43785.0,43761.0,0.01]
[1644589974045,0.07664315,43775.0,43761.0,0.01]
[1644589974242,0.057169,43772.0,43761.0,0.01]
[1644589974442,0.36763231,43762.0,43761.0,0.01]
[1644589974641,0.0421,43765.0,43761.0,0.01]
[1644589975793,0.12966488,43765.0,43761.0,0.01]
[1644589977194,0.18682588,43765.0,43761.0,0.01]
[1644589977798,0.099261,43765.0,43761.0,0.01076156]
[1644589978001,0.0421,43777.0,43764.0,0.05]
[1644589978301,0.057145,43779.0,43774.0,0.04994]
[1644589978495,0.057145,43779.0,43767.0,0.05]
[1644589978695,0.29811606,43788.0,43772.0,0.32759866]
[1644589978696,0.38773912,43783.0,43772.0,0.32759866]
[1644589978896,0.38773912,43783.0,43782.0,0.04994]
[1644589979096,0.15612975,43787.0,43782.0,0.04570005]
[1644589979305,0.15612975,43792.0,43786.0,0.04570005]
[1644589979556,0.18316113,43782.0,43778.0,0.58998984]
[1644589979750,0.18316113,43782.0,43778.0,0.28998984]
[1644589980150,0.18316113,43782.0,43778.0,0.29070476]
[1644589980350,0.18316113,43782.0,43779.0,0.114249]
[1644589980753,0.18316113,43782.0,43780.0,0.107126]
[1644589980953,0.18316113,43782.0,43780.0,0.16425023]
[1644589981752,0.18316113,43782.0,43780.0,0.10712423]
[1644589982352,0.30976738,43790.0,43785.0,0.19579389]
[1644589982553,0.30976738,43790.0,43785.0,0.24579389]
[1644589982753,0.30976738,43790.0,43785.0,0.19579389]
[1644589982955,0.31301328,43797.0,43785.0,0.45976021]
[1644589982956,0.057124,43795.0,43785.0,0.45976021]
[1644589983156,0.00071491,43798.0,43785.0,0.45976021]
[1644589983388,0.33159157,43798.0,43785.0,0.19579389]
[1644589983592,0.3345028,43797.0,43785.0,0.19579389]
[1644589983788,0.3345028,43797.0,43788.0,0.00073187]
[1644589983991,0.088757,43795.0,43788.0,0.00073187]
[1644589984193,0.65433748,43794.0,43788.0,0.00073187]
[1644589984390,0.03232018,43772.0,43771.0,0.19391206]
[1644589985389,0.03232018,43772.0,43764.0,0.42]
[1644589985593,0.29984975,43770.0,43765.0,0.11428898]
[1644589985790,0.29984975,43770.0,43765.0,0.34587609]
[1644589985991,0.03232018,43772.0,43765.0,0.34587609]
[1644589986293,0.03232018,43772.0,43766.0,0.25534021]
[1644589986491,0.03232018,43772.0,43767.0,0.057148]
[1644589986691,0.03232018,43772.0,43768.0,0.11428193]
[1644589986892,0.03232018,43772.0,43768.0,0.22856093]
[1644589987344,0.03232018,43772.0,43769.0,0.46150728]
[1644589987545,0.00076142,43791.0,43774.0,0.11426]
[1644589987742,0.00076142,43791.0,43778.0,0.16424001]
[1644589987939,0.00076142,43791.0,43779.0,0.114246]
[1644589988341,0.00076142,43791.0,43781.0,0.20082789]
[1644589988542,0.52017668,43795.0,43783.0,0.39855793]
[1644589988743,0.52017668,43795.0,43785.0,0.057128]
[1644589988744,0.05788959,43791.0,43785.0,0.057128]
[1644589988945,0.05788959,43791.0,43783.0,0.05076173]
[1644589988946,0.08108105,43788.0,43783.0,0.05076173]
[1644589989342,0.24882703,43785.0,43783.0,0.00076173]
[1644589989843,0.07495402,43779.0,43775.0,0.11427]
[1644589990246,0.07495402,43779.0,43761.0,0.01304846]
[1644589990247,0.3484476,43779.0,43761.0,0.01304846]
[1644589990446,0.06412852,43770.0,43763.0,0.114302]
[1644589990644,0.06412852,43770.0,43761.0,0.01304846]
[1644589990892,0.06412852,43770.0,43761.0,0.01]
[1644589991093,0.057158,43769.0,43765.0,0.00076184]
[1644589991290,0.05455353,43769.0,43765.0,0.00076184]
[1644589992193,0.05455353,43769.0,43763.0,0.11431371]
[1644589992391,0.36709759,43768.0,43765.0,0.00076184]
[1644589993194,0.27514129,43766.0,43765.0,0.00076184]
[1644589993398,0.3638726,43766.0,43761.0,0.01]
[1644589993594,0.057166,43766.0,43764.0,0.42076185]
[1644589994392,0.30738817,43766.0,43764.0,0.42076185]
[1644589994641,0.057166,43766.0,43764.0,0.42]
[1644589994843,0.157166,43766.0,43764.0,0.42]
[1644589995143,0.157166,43766.0,43764.0,0.67945437]
[1644589995144,0.057166,43766.0,43764.0,0.67945437]
[1644589995343,0.156406,43777.0,43765.0,0.11429927]
[1644589995545,0.29696321,43776.0,43765.0,0.11429927]
[1644589995942,0.3,43775.0,43769.0,0.00076115]
[1644589996243,0.36642186,43775.0,43769.0,0.00076115]
[1644589996444,0.0921,43784.0,43771.0,0.19120168]
[1644589996445,0.05,43784.0,43771.0,0.19120168]
[1644589996644,0.00076076,43791.0,43772.0,0.33862586]
[1644589996848,0.00991376,43791.0,43771.0,0.24120168]
[1644589997044,0.20362673,43791.0,43771.0,0.24120168]
[1644589997242,0.30388153,43784.0,43775.0,0.00076111]
[1644589997443,0.06336035,43780.0,43775.0,0.00076111]
[1644589997844,0.3637514,43782.0,43771.0,0.35548368]
[1644589997845,0.22808364,43773.0,43771.0,0.35548368]
[1644589998043,0.22795342,43773.0,43772.0,0.05714285]
[1644589999988,0.22795342,43773.0,43772.0,0.05214285]
[1644590000793,0.22795342,43773.0,43772.0,0.36065425]
[1644590000990,0.22795342,43773.0,43772.0,0.44898422]
[1644590001191,0.00076128,43784.0,43775.0,0.16425786]
[1644590001397,0.00076128,43784.0,43781.0,0.05]
[1644590001592,0.00076128,43784.0,43781.0,0.107116]
[1644590001791,0.17941666,43798.0,43782.0,1.00277523]
[1644590001792,0.28912425,43797.0,43782.0,1.00277523]
[1644590002056,0.28912425,43797.0,43789.0,0.114226]
[1644590002057,0.00304503,43791.0,43789.0,0.114226]
[1644590002248,0.00304503,43791.0,43790.0,0.05]
[1644590002249,0.00277015,43791.0,43790.0,0.05]
[1644590002645,0.00277015,43791.0,43790.0,0.11423061]
[1644590002847,0.00277015,43791.0,43790.0,0.16423061]
[1644590003049,0.28912425,43797.0,43790.0,0.16423061]
[1644590003249,0.29058192,43795.0,43791.0,0.05]
[1644590003651,0.28558192,43795.0,43791.0,0.05]
[1644590005254,0.08407812,43793.0,43791.0,0.05]
[1644590005454,0.28558192,43795.0,43791.0,0.05]
[1644590006090,0.34270592,43795.0,43791.0,0.05]
[1644590006493,0.06605634,43792.0,43790.0,0.11423061]
[1644590006694,0.06605634,43792.0,43786.0,0.11425297]
[1644590006891,0.25551482,43790.0,43784.0,0.11425844]
[1644590007093,0.06605634,43792.0,43785.0,0.05]
[1644590007295,0.057136,43789.0,43785.0,0.05]
[1644590007597,0.08829746,43782.0,43779.0,0.00073824]
[1644590007795,0.08829746,43782.0,43776.0,0.22111243]
[1644590007995,0.5768907,43788.0,43779.0,0.00073818]
[1644590008195,0.34640572,43782.0,43779.0,0.00073818]
[1644590008598,0.34640572,43782.0,43779.0,0.05787762]
[1644590008796,0.40354772,43782.0,43779.0,0.05787762]
[1644590009096,0.3,43787.0,43779.0,0.05713944]
[1644590009295,0.6860437,43788.0,43779.0,0.05713944]
[1644590009545,0.29805475,43787.0,43779.0,0.05713944]
[1644590009740,0.30729693,43787.0,43779.0,0.05713944]
[1644590010140,0.28574588,43782.0,43779.0,0.05713944]
[1644590010339,0.28574588,43782.0,43779.0,0.05787757]
[1644590011244,0.06715294,43783.0,43779.0,0.05787757]
[1644590011443,0.29681183,43781.0,43779.0,0.05713944]
[1644590011644,0.26999614,43780.0,43779.0,0.05713944]
[1644590011846,0.26999614,43780.0,43778.0,0.00072314]
[1644590011847,0.49558363,43780.0,43778.0,0.00072314]
[1644590012043,0.30096899,43779.0,43778.0,0.00072314]
[1644590012244,0.61652357,43779.0,43773.0,0.23994533]
[1644590012549,0.05715,43778.0,43773.0,0.23994533]
[1644590012745,0.38664157,43774.0,43773.0,0.23994533]
[1644590012945,0.66837817,43774.0,43773.0,0.23994533]
[1644590013144,0.76044069,43774.0,43773.0,0.23994533]
[1644590013389,0.76069506,43774.0,43773.0,0.23994533]
[1644590013691,0.48664157,43774.0,43773.0,0.23994533]
[1644590013890,0.14005922,43774.0,43773.0,0.23994533]
[1644590014091,0.41264205,43774.0,43773.0,0.23994533]
[1644590014692,0.14005922,43774.0,43773.0,0.23994533]
[1644590014891,0.74295554,43774.0,43773.0,0.23994533]
[1644590015094,0.47850812,43774.0,43773.0,0.23994533]
[1644590015492,0.14005922,43774.0,43773.0,0.23994533]
[1644590016594,0.54524851,43774.0,43773.0,0.23994533]
[1644590016794,0.81076323,43774.0,43773.0,0.23994533]
[1644590018446,0.54524851,43774.0,43773.0,0.23994533]
[1644590019343,0.94568752,43774.0,43773.0,0.23994533]
[1644590019546,0.99557599,43774.0,43773.0,0.23994533]
[1644590019744,1.03767599,43774.0,43773.0,0.23994533]
[1644590020546,0.73734851,43774.0,43773.0,0.23994533]
[1644590020802,0.68734851,43774.0,43773.0,0.23994533]
[1644590022706,0.97617189,43774.0,43773.0,0.23994533]
[1644590023105,1.1,43773.0,43771.0,0.00072433]
[1644590023310,0.28657373,43772.0,43771.0,4.33e-06]
[1644590023505,0.28657373,43772.0,43755.0,0.4211]
[1644590023506,1.1,43770.0,43755.0,0.4211]
[1644590023804,0.13142616,43760.0,43755.0,0.4211]
[1644590024004,0.73370948,43759.0,43755.0,0.0011]
[1644590024205,0.99497171,43759.0,43755.0,0.0011]
[1644590024552,1.09497171,43759.0,43755.0,0.0011]
[1644590025347,0.057183,43758.0,43755.0,0.0011]
[1644590025547,0.0421,43757.0,43755.0,0.0011]
[1644590025946,0.32231215,43756.0,43755.0,0.0011]
[1644590026244,0.36441215,43756.0,43755.0,0.0011]
[1644590026448,0.46441215,43756.0,43755.0,0.0011]
[1644590027247,0.36441215,43756.0,43755.0,0.0011]
[1644590027451,0.0421,43756.0,43755.0,0.0011]
[1644590027646,0.0421,43756.0,43752.0,0.00132609]
[1644590027647,0.3421,43756.0,43752.0,0.00132609]
[1644590027850,0.3421,43756.0,43750.0,0.0001]
[1644590027851,0.057195,43755.0,43750.0,0.0001]
[1644590028048,0.46831015,43751.0,43750.0,0.0001]
[1644590028294,1.22413983,43751.0,43750.0,0.0001]
[1644590028494,1.22413983,43751.0,43750.0,0.00086019]
[1644590028495,1.27851566,43751.0,43750.0,0.00086019]
[1644590028994,0.93571466,43751.0,43750.0,0.00086019]
[1644590029593,0.93571466,43751.0,43750.0,0.0001]
[1644590029995,1.24797599,43751.0,43750.0,0.0001]
[1644590031396,1.24797599,43751.0,43748.0,0.00583446]
[1644590031597,0.057209,43747.0,43742.0,0.00194125]
[1644590031803,0.05,43743.0,43731.0,0.01]
[1644590032062,0.05,43735.0,43731.0,0.01]
[1644590032252,0.08295029,43724.0,43714.0,0.391084]
[1644590032453,0.28484707,43717.0,43714.0,0.391084]
[1644590032651,0.28484707,43717.0,43714.0,0.381084]
[1644590032652,0.057226,43716.0,43714.0,0.381084]
[1644590034753,0.12350414,43716.0,43714.0,0.381084]
[1644590034953,0.0421,43715.0,43714.0,0.381084]
[1644590035456,0.057226,43716.0,43714.0,0.381084]
[1644590035656,0.69026927,43716.0,43714.0,0.381084]
[1644590036096,0.79026927,43716.0,43714.0,0.381084]
[1644590036297,0.85599591,43716.0,43714.0,0.381084]
[1644590036898,0.2933338,43715.0,43714.0,0.381084]
[1644590037099,0.2933338,43715.0,43701.0,0.01]
[1644590037400,0.2933338,43715.0,43700.0,0.00137123]
[1644590037401,0.457243,43711.0,43700.0,0.00137123]
[1644590037599,0.37017453,43710.0,43700.0,0.00137123]
[1644590037799,0.52017453,43710.0,43700.0,0.00137123]
[1644590038000,0.320221,43704.0,43700.0,0.00137123]
[1644590038200,0.32459431,43701.0,43700.0,0.00137123]
[1644590038400,0.057245,43703.0,43700.0,0.00137123]
[1644590038601,0.114502,43708.0,43700.0,0.00137123]
[1644590038801,0.1,43710.0,43700.0,0.00137123]
[1644590039003,0.101,43716.0,43700.0,0.00137123]
[1644590039204,0.101,43716.0,43703.0,0.05723]
[1644590039403,0.29443036,43708.0,43703.0,0.05723]
[1644590039648,0.001,43716.0,43703.0,0.05723]
[1644590039846,0.07537593,43713.0,43703.0,0.05723]
[1644590040054,0.07537593,43713.0,43702.0,0.31076812]
[1644590040055,0.057234,43711.0,43702.0,0.31076812]
[1644590040246,0.057234,43711.0,43702.0,0.25353735]
[1644590040447,0.32443946,43708.0,43702.0,0.25353735]
[1644590040750,0.057234,43711.0,43702.0,0.25353735]
[1644590040751,0.057234,43711.0,43706.0,0.00075042]
[1644590041146,0.35358646,43711.0,43706.0,0.00075042]
[1644590041346,0.25113078,43711.0,43706.0,0.00075042]
[1644590041547,0.26553208,43710.0,43702.0,0.31076935]
[1644590041849,0.34147988,43708.0,43706.0,0.00075784]
[1644590042254,0.26322797,43707.0,43706.0,0.00075784]
[1644590042449,0.27869741,43707.0,43706.0,0.00075784]
[1644590042849,0.0834491,43708.0,43700.0,0.00137123]
[1644590043048,0.08787827,43706.0,43702.0,0.31402823]
[1644590043694,0.1406881,43708.0,43702.0,0.31402823]
[1644590043695,0.057239,43708.0,43702.0,0.31402823]
[1644590044697,0.13906666,43708.0,43700.0,0.00137123]
[1644590045499,0.13906666,43708.0,43702.0,0.00075705]
[1644590045699,0.2914874,43707.0,43702.0,0.00075705]
[1644590045901,0.057245,43704.0,43702.0,0.00075705]
[1644590046498,0.057245,43704.0,43701.0,0.00071493]
[1644590047344,0.59137095,43703.0,43701.0,0.00071493]
[1644590047547,0.59137095,43703.0,43700.0,0.00137123]
[1644590047745,0.057245,43704.0,43700.0,0.00137123]
[1644590048944,0.25004781,43701.0,43700.0,0.00137123]
[1644590049149,0.3970634,43701.0,43700.0,0.00137123]
[1644590049348,0.4730134,43701.0,43700.0,0.00137123]
[1644590049552,0.4730134,43701.0,43686.0,0.3814]
[1644590049553,1.1,43700.0,43668.0,0.229011]
[1644590049748,1.1,43700.0,43691.0,0.00022679]
[1644590049749,0.263908,43699.0,43691.0,0.00022679]
[1644590049945,0.3,43698.0,43691.0,0.00022679]
[1644590050146,0.21897639,43694.0,43693.0,0.00071465]
[1644590050346,1.1,43693.0,43689.0,0.00094144]
[1644590050554,1.1,43693.0,43681.0,0.01]
[1644590050555,1.1421,43692.0,43681.0,0.01]
[1644590050811,0.08158174,43688.0,43681.0,0.01]
[1644590051112,0.28462983,43686.0,43681.0,0.01]
[1644590051307,0.28462983,43686.0,43671.0,0.01]
[1644590051308,0.23103249,43675.0,43671.0,0.01]
[1644590051509,0.39370494,43674.0,43671.0,0.01]
[1644590051908,1.1,43673.0,43663.0,0.02002413]
[1644590052109,0.3421,43672.0,43663.0,0.02002413]
[1644590052309,0.51537036,43671.0,43663.0,0.02002413]
[1644590052507,0.34722734,43664.0,43663.0,0.02002413]
[1644590052906,0.0711687,43664.0,43663.0,0.02002413]
[1644590053108,0.114599,43665.0,43663.0,0.02002413]
[1644590053310,0.0421,43670.0,43663.0,0.02002413]
[1644590053509,0.0421,43670.0,43663.0,0.24269385]
[1644590053711,0.0421,43670.0,43664.0,0.057287]
[1644590053910,0.4125847,43670.0,43664.0,0.057287]
[1644590054109,0.0837387,43668.0,43664.0,0.057287]
[1644590054310,0.114583,43670.0,43664.0,0.057287]
[1644590054555,0.114583,43670.0,43668.0,0.05]
[1644590054556,0.0421,43670.0,43668.0,0.05]
[1644590054744,0.057282,43674.0,43668.0,0.057282]
[1644590054943,0.33908413,43678.0,43668.0,0.057282]
[1644590055142,0.0421,43678.0,43669.0,0.107268]
[1644590055343,0.114536,43688.0,43674.0,0.24482031]
[1644590055344,0.36894686,43682.0,43674.0,0.24482031]
[1644590055543,0.06891461,43684.0,43674.0,0.29482031]
[1644590055744,0.06891461,43684.0,43674.0,0.05]
[1644590055944,0.06891461,43684.0,43675.0,0.057267]
[1644590056248,0.05,43690.0,43677.0,0.00075675]
[1644590056249,0.3,43689.0,43677.0,0.00075675]
[1644590056445,0.00075654,43689.0,43677.0,0.00075675]
[1644590056644,0.34006318,43685.0,43677.0,0.00075675]
[1644590056944,0.00075654,43689.0,43677.0,0.00075675]
[1644590056945,0.05801754,43689.0,43682.0,0.057263]
[1644590057147,0.05801754,43689.0,43683.0,0.31849922]
[1644590057148,0.00075654,43689.0,43683.0,0.31849922]
[1644590057343,0.30358648,43698.0,43688.0,0.05]
[1644590057546,0.30358648,43698.0,43688.0,0.0921]
[1644590057745,0.31779322,43692.0,43688.0,0.0921]
[1644590057946,0.31779322,43692.0,43676.0,0.16300005]
[1644590058145,0.36085048,43698.0,43683.0,0.114509]
[1644590058400,0.28570546,43688.0,43683.0,0.114509]
[1644590058601,0.05,43700.0,43683.0,0.114509]
[1644590058807,0.1376611,43703.0,43683.0,0.114509]
[1644590059003,0.34206727,43692.0,43684.0,0.2181735]
[1644590059202,0.34206727,43692.0,43683.0,0.114509]
[1644590059703,0.34206727,43692.0,43680.0,0.11452]
[1644590059704,0.08360769,43691.0,43680.0,0.11452]
[1644590059903,0.08201753,43678.0,43677.0,0.00025781]
[1644590060106,0.35075626,43680.0,43677.0,0.00025781]
[1644590060306,0.057273,43688.0,43677.0,0.00025781]
[1644590060904,0.057273,43688.0,43676.0,0.05727]
[1644590060905,0.114539,43687.0,43676.0,0.05727]
[1644590061104,0.114539,43687.0,43677.0,0.00025781]
[1644590061407,0.30243562,43681.0,43677.0,0.00025781]
[1644590062052,0.06499719,43679.0,43673.0,0.35134924]
[1644590062243,0.06499719,43679.0,43677.0,0.00075639]
[1644590062444,0.13439042,43680.0,43679.0,0.06764661]
[1644590062644,0.04285619,43688.0,43679.0,0.06764661]
[1644590062846,0.00075619,43688.0,43679.0,0.06764661]
[1644590063044,0.05,43692.0,43681.0,0.05]
[1644590063244,0.1,43702.0,43682.0,0.3886393]
[1644590063445,0.35772483,43701.0,43691.0,0.3723109]
[1644590063745,0.057254,43695.0,43687.0,0.05]
[1644590063948,0.057254,43695.0,43690.0,0.057257]
[1644590064344,0.31964893,43709.0,43690.0,0.057257]
[1644590064944,0.057246,43701.0,43693.0,0.23651592]
[1644590065145,0.38293589,43698.0,43694.0,0.057249]
[1644590065348,0.38293589,43698.0,43689.0,0.00022615]
[1644590065349,0.29857988,43697.0,43689.0,0.00022615]
[1644590065545,0.29857988,43697.0,43677.0,0.484]
[1644590065546,0.07675739,43690.0,43677.0,0.484]
[1644590065794,0.07675739,43690.0,43678.0,0.00022615]
[1644590065995,0.057265,43689.0,43684.0,0.00024388]
[1644590066197,0.29857988,43697.0,43684.0,0.00024388]
[1644590066198,0.29857988,43697.0,43685.0,0.21993106]
[1644590066394,0.3462752,43699.0,43687.0,0.057254]
[1644590066395,0.114506,43699.0,43687.0,0.057254]
[1644590066598,0.35045617,43692.0,43687.0,0.057254]
[1644590066795,0.114506,43699.0,43687.0,0.057254]
[1644590066997,0.057258,43692.0,43686.0,0.11473415]
[1644590067196,0.0740104,43687.0,43686.0,0.50002614]
[1644590067595,0.114525,43693.0,43686.0,0.50002614]
[1644590067799,0.00074196,43695.0,43686.0,0.50002614]
[1644590067996,0.00074196,43695.0,43687.0,0.22874717]
[1644590067997,0.22928433,43689.0,43687.0,0.22874717]
[1644590068199,0.22928433,43689.0,43687.0,0.22897332]
[1644590068397,0.22928433,43689.0,43687.0,0.22874717]
[1644590068599,0.08274045,43690.0,43686.0,0.50002614]
[1644590068798,0.08274045,43690.0,43687.0,0.05]
[1644590068997,2.76686063,43689.0,43687.0,0.05]
[1644590069204,3.09048405,43689.0,43687.0,0.05]
[1644590069399,3.19048405,43689.0,43686.0,0.114508]
[1644590069655,0.49684924,43688.0,43685.0,0.00022615]
[1644590069852,0.63894924,43688.0,43684.0,0.00073433]
[1644590070049,0.63894924,43688.0,43672.0,0.3649]
[1644590070050,0.05,43685.0,43665.0,0.12]
[1644590070350,0.05,43685.0,43663.0,0.02002413]
[1644590070351,0.138063,43682.0,43680.0,6.2e-06]
[1644590070550,0.5421,43681.0,43664.0,0.42]
[1644590070751,0.05,43677.0,43664.0,0.42]
[1644590070949,0.114595,43675.0,43664.0,0.42]
[1644590071152,0.17181733,43676.0,43665.0,0.057284]
[1644590071352,0.08785059,43673.0,43666.0,0.35778989]
[1644590071754,0.0421,43676.0,43666.0,0.40778989]
[1644590071952,0.3,43683.0,43667.0,0.00072115]
[1644590072152,0.11528299,43677.0,43667.0,0.00072115]
[1644590072351,0.61412795,43688.0,43684.0,0.06424487]
[1644590072557,0.0421,43687.0,43684.0,0.06424487]
[1644590072754,0.25040144,43686.0,43684.0,0.06424487]
[1644590072953,0.07686969,43685.0,43684.0,0.06424487]
[1644590073407,0.05727,43687.0,43684.0,0.17877587]
[1644590073605,0.07285,43701.0,43684.0,0.17877587]
[1644590073606,0.114525,43692.0,43684.0,0.17877587]
[1644590073806,0.114525,43692.0,43685.0,0.05]
[1644590073807,0.13770321,43690.0,43685.0,0.05]
[1644590074006,0.13770321,43690.0,43686.0,0.24364258]
[1644590074208,0.114525,43692.0,43685.0,0.05]
[1644590074410,0.07743185,43688.0,43686.0,0.057263]
[1644590075208,0.05726,43689.0,43686.0,0.057263]
[1644590075606,0.05801506,43689.0,43686.0,0.057263]
[1644590075807,0.05301506,43689.0,43686.0,0.057263]
[1644590076608,0.11870822,43689.0,43686.0,0.057263]
[1644590076808,2.28553302,43689.0,43686.0,0.057263]
[1644590077055,0.30272254,43687.0,43686.0,0.057263]
[1644590077247,0.30272254,43687.0,43671.0,0.2946642]
[1644590077248,0.05728,43684.0,43671.0,0.2946642]
[1644590077446,0.29138139,43676.0,43669.0,0.3]
[1644590077644,0.08440021,43675.0,43665.0,0.3]
[1644590077847,0.1,43683.0,43672.0,0.31777508]
[1644590078045,0.00045255,43679.0,43672.0,0.31777508]
[1644590078445,0.057288,43675.0,43672.0,0.31777508]
[1644590078645,0.057288,43675.0,43672.0,0.057286]
[1644590078845,0.057288,43675.0,43672.0,0.056994]
[1644590079249,0.057288,43675.0,43663.0,0.02002413]
[1644590079250,0.35378069,43674.0,43663.0,0.02002413]
[1644590079446,0.07873277,43667.0,43664.0,0.477294]
[1644590079649,0.27140316,43666.0,43664.0,0.477294]
[1644590079846,0.27140316,43666.0,43663.0,0.02002413]
[1644590079847,0.057297,43666.0,43663.0,0.02002413]
[1644590080447,0.29462272,43665.0,43663.0,0.02002413]
[1644590080645,0.29462272,43665.0,43663.0,0.07732313]
[1644590080898,0.29462272,43665.0,43663.0,0.02002413]
[1644590081095,0.057297,43666.0,43663.0,0.02002413]
[1644590081895,0.057297,43666.0,43663.0,0.07732213]
[1644590082095,0.057297,43666.0,43663.0,0.12732213]
[1644590082299,0.057297,43666.0,43665.0,0.39477944]
[1644590082597,0.19332677,43667.0,43666.0,0.07487531]
[1644590082798,0.52994581,43667.0,43666.0,0.07487531]
[1644590082996,0.52994581,43667.0,43663.0,0.02074302]
[1644590082997,1.1,43666.0,43663.0,0.02074302]
[1644590083297,0.0421,43665.0,43661.0,0.01]
[1644590083496,0.74213589,43662.0,43661.0,0.01]
[1644590083695,1.28259682,43662.0,43661.0,0.01]
[1644590083898,1.38259682,43662.0,43661.0,0.01]
[1644590084295,1.38259682,43662.0,43653.0,0.00549514]
[1644590084296,1.1,43661.0,43653.0,0.00549514]
[1644590084550,1.1,43661.0,43651.0,0.01]
[1644590084551,1.1,43658.0,43651.0,0.01]
[1644590084747,0.3421,43657.0,43651.0,0.01]
[1644590084950,0.33424595,43653.0,43651.0,0.01]
[1644590085148,0.08418559,43652.0,43651.0,0.01]
[1644590085348,0.32186591,43652.0,43651.0,0.01]
[1644590085548,0.70973589,43652.0,43651.0,0.01]
[1644590085747,0.62938457,43652.0,43651.0,0.01]
[1644590085949,0.14151459,43652.0,43651.0,0.01]
[1644590086148,0.24151459,43652.0,43651.0,0.01]
[1644590086346,0.14151459,43652.0,43651.0,0.01]
[1644590088146,1.1,43651.0,43649.0,0.00092167]
[1644590088402,1.1,43651.0,43643.0,0.00388407]
[1644590088403,0.18940053,43645.0,43643.0,0.00388407]
[1644590088701,0.25453053,43645.0,43644.0,0.0015888]
[1644590088898,0.50135027,43645.0,43644.0,0.0015888]
[1644590089098,0.75,43643.0,43641.0,0.01]
[1644590089299,0.75,43643.0,43634.0,0.00116512]
[1644590089300,1.1963848,43642.0,43634.0,0.00116512]
[1644590089500,0.30716379,43641.0,43634.0,0.00116512]
[1644590089699,0.95,43642.0,43634.0,0.42116512]
[1644590089700,0.33328678,43638.0,43634.0,0.42116512]
[1644590089901,0.33328678,43638.0,43634.0,0.00116512]
[1644590089902,0.80049056,43638.0,43634.0,0.00116512]
[1644590090103,0.84259056,43638.0,43633.0,0.0011]
[1644590090302,1.18568871,43637.0,43627.0,0.0011]
[1644590090499,0.3096173,43637.0,43627.0,0.0011]
[1644590090700,0.18568871,43637.0,43629.0,0.36446823]
[1644590090900,0.057341,43636.0,43629.0,0.36446823]
[1644590091399,0.057341,43636.0,43627.0,0.0011]
[1644590092057,1.35688351,43635.0,43627.0,0.0011]
[1644590092256,0.4,43632.0,43621.0,0.01]
[1644590092554,0.12357916,43622.0,43621.0,0.01]
[1644590092756,0.12292916,43622.0,43621.0,0.01]
[1644590093153,0.12292916,43622.0,43620.0,0.0011]
[1644590093555,0.057357,43622.0,43620.0,0.0011]
[1644590093758,1.1,43624.0,43606.0,0.39990352]
[1644590093954,1.1,43624.0,43601.0,0.36555864]
[1644590093955,0.36607399,43604.0,43601.0,0.12345836]
[1644590094158,0.36607399,43604.0,43593.0,0.47148936]
[1644590094159,0.3,43621.0,43600.0,0.3440186]
[1644590094160,0.07883,43611.0,43600.0,0.3440186]
[1644590094358,3.41159244,43604.0,43600.0,0.00031672]
[1644590094656,3.41159244,43604.0,43590.0,0.36774893]
[1644590094657,0.08874902,43592.0,43590.0,0.00063344]
[1644590094855,0.057399,43591.0,43590.0,0.00063344]
[1644590095057,0.19694534,43595.0,43590.0,0.00063344]
[1644590095257,0.0421,43601.0,43590.0,0.00063344]
[1644590095653,0.29306158,43599.0,43589.0,0.38061123]
[1644590095905,0.07825471,43593.0,43589.0,0.38061123]